Cogmind - Beta 13 @@@ ROGUE MODE // 2024.05.21 @ 20:49:41 Player: BatSpy Result: Destroyed by S-27 Virus with Autogun Performance ------------- Evolutions (3) 1500 Regions Visited (6) 1200 Robots Destroyed (22) 110 Value Destroyed (575) 575 Prototype IDs (5) 100 Alien Tech Used (0) 0 Bonus (0) 0 TOTAL SCORE: 3485 Bonus ------- None Cogmind --------- Core Integrity 0/700 Matter 280/300 Energy 100/100 System Corruption 2% Temperature Cool (0) Movement Core (50) Location -7/Lower Caves Parts ------- > --- POWER (2) -------- (None) > --- PROPULSION (4) --- (None) > --- UTILITY (4) ------ Scrap Engine > --- WEAPON (3) ------- (None) > --- INVENTORY (5) ---- Authchip [R/Combat] Authchip [Processor] EMP Trap Peak State ------------ > --- POWER ------------ Improved Ion Engine > --- PROPULSION ------- Light Treads Airjet-Aluminum Exoskeleton > --- UTILITY ---------- Armored Scrap Engine Heat Sink Utility Shielding > --- WEAPON ----------- Plasma Cannon Thermal Particle Construct/G Cycling Energy Beam Construct/G > --- INVENTORY -------- Authchip [R/Combat] Authchip [Processor] EMP Trap [Rating: 33] Favorites ----------- Power Improved Ion Engine Engine Improved Ion Engine Propulsion Light Treads Treads Light Treads Leg Constructs Wheel Wheel Flight Unit Flight Unit Utility Scrap Engine Device Scrap Engine Processor Targeting Computer Protection Propulsion Shielding Weapon Hammer Energy Gun Subdweller Laser Energy Cannon Plasma Cannon Ballistic Gun Light Assault Rifle Launcher Rocket Launcher Special Weapon Mining Laser Impact Weapon Hammer Build | -11 -10 -10 -10 -9 -7 -7 ------- Run | Yrd Mat Min Sub Rec Fac Low Slots Evolved 6 | . . . . . 6 . Power 1 | . . . . . 1 . Propulsion 2 | . . . . . 2 . Utility 2 | . . . . . 2 . Weapon 1 | . . . . . 1 . Parts Attached 33 | 5 2 8 5 8 5 . Power 4 | 1 . 2 1 . . . Engine 4 | 1 . 2 1 . . . Core . | . . . . . . . Reactor . | . . . . . . . Propulsion 8 | 2 . . 2 3 1 . Treads 2 | . . . . 2 . . Leg . | . . . . . . . Wheel 4 | 2 . . 1 . 1 . Hover . | . . . . . . . Flight 2 | . . . 1 1 . . Utility 8 | . 2 3 . 1 2 . Device 3 | . 1 . . 1 1 . Storage . | . . . . . . . Processor 2 | . . 2 . . . . Hackware . | . . . . . . . Protection 3 | . 1 1 . . 1 . Artifact . | . . . . . . . Weapon 13 | 2 . 3 2 4 2 . Energy Gun 3 | . . . 1 2 . . Energy Cannon 2 | . . . 1 . 1 . Ballistic Gun 2 | 2 . . . . . . Ballistic Cannon . | . . . . . . . Launcher 2 | . . . . 1 1 . Special Weapon 2 | . . 2 . . . . Impact Weapon 2 | . . 1 . 1 . . Slashing Weapon . | . . . . . . . Piercing Weapon . | . . . . . . . Special Melee Weapon . | . . . . . . . Unidentified Prototypes . | . . . . . . . Parts Lost 22 | . . 4 4 2 11 1 Power 3 | . . 1 1 . 1 . Propulsion 7 | . . . 2 1 4 . Utility 4 | . . 1 . . 2 1 Weapon 8 | . . 2 1 1 4 . Highest Loss Streak 8 | . . 4 4 2 8 1 To Critical Strikes 1 | . . . 1 . . . Average Slot Usage (%) 75 | . 98 95 92 83 41 7 Engine 11 | . 14 13 12 14 2 . Treads 11 | . . . . 21 8 . Wheel 10 | . 28 28 21 4 2 . Device 11 | . 13 6 . 13 11 7 Processor 3 | . . 11 28 . . . Protection 3 | . 13 9 . . 3 . Energy Gun 9 | . . . 2 16 8 . Ballistic Gun 5 | . 28 14 . . . . Special Weapon 1 | . . 7 9 . . . Impact Weapon 5 | . . 5 7 9 . . Naked Turns . | . . . . . . . Heaviest Build 23 | 8 10 10 14 16 23 1 Greatest Support 40 | 26 26 26 26 40 37 3 Greatest Overweight (x) 4 | . . . 1 . 4 . Average Overweight (x) . | . . . . . . . Largest Inventory Capacity 5 | 5 5 5 5 5 5 5 Average Capacity 5 | 5 5 5 5 5 5 5 Most Carried 5 | 5 4 5 5 5 5 3 Average Carried 3 | 1 1 4 4 4 3 3 Final Capacity 5 | 5 5 5 5 5 5 5 Final Carried 5 | 1 4 5 4 5 3 3 Scrap Engine Consumption 38 | . . . . 29 9 . Constructs Created 4 | . . . . 3 1 . Constructs Modified 5 | . . . . 4 1 . Class Distribution -------------------- 71% | Mutant 15% | Scavenger-Mutant 9% | Construct 3% | Tank Dominant Class ---------------- Mutant | -10/Materials Mutant | -10/Mines Mutant | -10/Subcaves Mutant | -9/Recycling Mutant | -7/Factory Mutant | -7/Lower Caves Resources | -11 -10 -10 -10 -9 -7 -7 ----------- Run | Yrd Mat Min Sub Rec Fac Low Matter Collected 579 | 236 35 103 54 89 62 . Remotely . | . . . . . . . Salvage Created 599 | . 54 72 131 150 192 . Parts 45 | . 6 7 14 12 6 . Haulers Intercepted . | . . . . . . . Recyclers Shooed . | . . . . . . . Parts Field Recycled . | . . . . . . . Retrieved Matter . | . . . . . . . Parts Self-Destructed 20 | . . . 17 . . 3 Prevented . | . . . . . . . Kills | -11 -10 -10 -10 -9 -7 -7 ------- Run | Yrd Mat Min Sub Rec Fac Low Combat Hostiles Destroyed 20 | . 3 4 5 3 5 . Guns 9 | . 3 3 . 3 . . Cannons 8 | . . 1 5 . 2 . AOE 2 | . . . . . 2 . Classes Destroyed 5 | . 1 1 2 . 1 . Turret 2 | . . . 2 . . . Swarmer 12 | . 3 3 4 . 2 . Grunt 3 | . . . . . 3 . Sentry 4 | . . 1 . 3 . . Subdweller 1 | . . . 1 . . . Best Kill Streak 5 | . 3 3 5 1 3 . Combat Bots Only 5 | . 3 3 5 1 3 . Max Kills in Single Turn 2 | . 1 2 1 1 2 . Gunslinging 1 | . . 1 . . . . Exploded 2 | . . . . . 2 . Melee . | . . . . . . . Uniques/NPCs Destroyed . | . . . . . . . Combat | -11 -10 -10 -10 -9 -7 -7 -------- Run | Yrd Mat Min Sub Rec Fac Low Hostile Shots Fired 340 | . 22 35 59 14 169 41 Missed 109 | . 9 9 23 4 53 11 Damage Taken 3230 | . 105 343 293 194 1840 455 Core 914 | . 43 83 66 16 409 297 Absorbed by Shields . | . . . . . . . Redirected to Shielding 72 | . 3 16 . . 53 . Regen/Repaired (Parts) 72 | . . . . . 72 . Core Remaining (%) 58 | 100 . . . 16 . . Volleys Fired 75 | . 13 10 27 9 16 . Largest 3 | . 2 2 2 2 3 . Hottest 155 | . 40 120 120 93 155 . Shots Fired 124 | . 26 14 32 12 40 . Gun 82 | . 26 12 5 11 28 . Cannon 25 | . . . 15 . 10 . Launcher 3 | . . . . 1 2 . Special 14 | . . 2 12 . . . Kinetic 40 | . 26 12 . 2 . . Thermal 81 | . . 2 32 9 38 . Explosive 3 | . . . . 1 2 . Electromagnetic . | . . . . . . . Robot Hit Streak 16 | . 4 11 14 10 16 . Robot Miss Streak 4 | . 3 2 1 1 4 . Penetration Max . | . . . . . . . Secondary Targets 2 | . 1 1 . . . . Max Gunslinging Chain 1 | . 1 1 . . . . Shots Hit Robots 76 | . 11 12 16 11 26 . Core Hits 33 | . 3 6 8 4 12 . Critical Kills 1 | . . . 1 . . . Critical Parts Destroyed 1 | . . . . 1 . . Critical Strikes 3 | . . . 1 1 1 . Destroy 2 | . . . 1 . 1 . Smash 1 | . . . . 1 . . Melee Attacks 1 | . . . . 1 . . Impact 1 | . . . . 1 . . Slashing . | . . . . . . . Piercing . | . . . . . . . Sneak Attacks . | . . . . . . . Combat Hostiles . | . . . . . . . Follow-up Attacks . | . . . . . . . Damage Inflicted 1479 | . 149 142 299 199 690 . Guns 713 | . 149 94 105 150 215 . Cannons 370 | . . . 194 . 176 . Explosions 325 | . . . . 26 299 . Melee 23 | . . . . 23 . . Ramming . | . . . . . . . Kinetic 254 | . 149 94 . 11 . . Thermal 877 | . . 48 299 139 391 . Explosive 325 | . . . . 26 299 . Electromagnetic . | . . . . . . . Impact 23 | . . . . 23 . . Slashing . | . . . . . . . Piercing . | . . . . . . . Highest Corruption 2 | . . . . . 2 2 Average Corruption 1 | . . . . . 1 2 Corruption Purged . | . . . . . . . Corruption Blocked . | . . . . . . . Overload Shots . | . . . . . . . Overflow Damage 25 | . . . . 25 . . Projectiles . | . . . . . . . Explosions 2 | . . . . 2 . . Melee 23 | . . . . 23 . . Knockbacks . | . . . . . . . Impact . | . . . . . . . Kinetic . | . . . . . . . Secondary . | . . . . . . . Self-Inflicted Damage 72 | . . . . 47 25 . Shots 3 | . . . . 1 2 . Rammed . | . . . . . . . Targets Rammed . | . . . . . . . Kicked . | . . . . . . . Crushed . | . . . . . . . Highest Temperature 299 | . . 29 54 106 299 . Average Temperature 81 | . . 10 28 38 151 . Received Heat Transfer 525 | . . 99 102 54 270 . Siege Activations . | . . . . . . . Robots Corrupted . | . . . . . . . Combat Hostiles . | . . . . . . . Parts Fried . | . . . . . . . Impact Corruptions 1 | . . . . 1 . . Robots Melted 1 | . . . . . 1 . Combat Hostiles 1 | . . . . . 1 . Parts Melted 3 | . . . . . 3 . Heat Transferred 1872 | . . 100 532 224 1016 . Parts Sabotaged . | . . . . . . . Parts Stolen . | . . . . . . . Parts Stripped . | . . . . . . . Power Chain Reactions . | . . . . . . . Alert | -11 -10 -10 -10 -9 -7 -7 ------- Run | Yrd Mat Min Sub Rec Fac Low Peak Influence 334 | . 137 138 . 334 89 . Initial 316 | . . 53 . 316 . . Average 80 | . 40 102 . 101 37 . Maximum Alert Level 1 | . . . . 1 . . Low Security (%) 86 | 100 100 100 . 74 100 . Level 1 13 | . . . . 25 . . Level 2 . | . . . . . . . Level 3 . | . . . . . . . Level 4 . | . . . . . . . Level 5 . | . . . . . . . High Security . | . . . . . . . Max Security . | . . . . . . . Squads Dispatched 1 | . . . . . 1 . Investigation . | . . . . . . . Extermination 1 | . . . . . 1 . Reinforcement . | . . . . . . . Assault . | . . . . . . . Garrison . | . . . . . . . Intercept . | . . . . . . . Searches Triggered . | . . . . . . . Construction Impeded . | . . . . . . . Haulers Reinforced . | . . . . . . . Active Scanning Responses . | . . . . . . . Cargo Convoy Interrupts . | . . . . . . . Stealth | -11 -10 -10 -10 -9 -7 -7 --------- Run | Yrd Mat Min Sub Rec Fac Low Distress Signals 1 | . 1 . . . . . Communications Jammed . | . . . . . . . Distress Signals . | . . . . . . . Times Spotted 56 | . 7 5 21 3 13 7 Peak Tracking Total 7 | . 4 3 7 1 6 7 Tactical Retreats 6 | . 1 . 2 . 2 1 Traps | -11 -10 -10 -10 -9 -7 -7 ------- Run | Yrd Mat Min Sub Rec Fac Low Traps Triggered . | . . . . . . . Indirectly . | . . . . . . . Trap Hack Attempts . | . . . . . . . Triggered . | . . . . . . . Disarmed . | . . . . . . . Reprogrammed . | . . . . . . . Reused . | . . . . . . . Traps Extracted . | . . . . . . . Installed 1 | . . 1 . . . . Triggered . | . . . . . . . Most Traps Carried 2 | . . 2 2 1 1 1 Machines | -11 -10 -10 -10 -9 -7 -7 ---------- Run | Yrd Mat Min Sub Rec Fac Low Machines Disabled 1 | . . . 1 . . . Max in Single Turn 1 | . . . 1 . . . Machines Repaired . | . . . . . . . Machines Dismantled . | . . . . . . . Machines Sabotaged . | . . . . . . . Overloaded Fab Kills . | . . . . . . . Hacking | -11 -10 -10 -10 -9 -7 -7 --------- Run | Yrd Mat Min Sub Rec Fac Low Machines Accessed 16 | . 3 . . 12 1 . Terminals 9 | . 3 . . 6 . . Fabricators 1 | . . . . . 1 . Repair Stations . | . . . . . . . Recycling Units 6 | . . . . 6 . . Scanalyzers . | . . . . . . . Garrison Access . | . . . . . . . Total Hacks 29 | . 5 . . 22 2 . Successful 17 | . 2 . . 13 2 . Failed 12 | . 3 . . 9 . . Catastrophic 2 | . 2 . . . . . Database Lockouts . | . . . . . . . Manual . | . . . . . . . Terminals 16 | . 5 . . 11 . . Fabricators 2 | . . . . . 2 . Repair Stations . | . . . . . . . Recycling Units 11 | . . . . 11 . . Scanalyzers . | . . . . . . . Garrison Access . | . . . . . . . Terminal Hacks 8 | . 2 . . 6 . . Robot Analysis 1 | . 1 . . . . . Prototype ID Bank 1 | . . . . 1 . . Alert Level 1 | . . . . 1 . . Unreport Threat 1 | . . . . 1 . . Hauler Manifests 1 | . . . . 1 . . Registered Components 1 | . 1 . . . . . Zone Layout 2 | . . . . 2 . . Fabricator Hacks 2 | . . . . . 2 . Network Status 1 | . . . . . 1 . Build 1 | . . . . . 1 . Repair Station Hacks . | . . . . . . . Recycling Unit Hacks 7 | . . . . 7 . . Report Inventory 4 | . . . . 4 . . Retrieve Components 3 | . . . . 3 . . Scanalyzer . | . . . . . . . Garrison Access Hacks . | . . . . . . . Unauthorized Hacks . | . . . . . . . Terminals . | . . . . . . . Fabricators . | . . . . . . . Repair Stations . | . . . . . . . Recycling Units . | . . . . . . . Scanalyzers . | . . . . . . . Garrison Access . | . . . . . . . Data Cores Recovered . | . . . . . . . Used . | . . . . . . . Hacking Detections 8 | . 2 . . 5 1 . Full Trace Events . | . . . . . . . Feedback Events . | . . . . . . . Feedback Blocked . | . . . . . . . Robot Schematics Acquired . | . . . . . . . Robots Built . | . . . . . . . Authchips . | . . . . . . . Time . | . . . . . . . Total Robot Build Rating . | . . . . . . . Part Schematics Acquired . | . . . . . . . Parts Built 1 | . . . . . 1 . Authchips . | . . . . . . . Time 95 | . . . . . 95 . Total Part Build Rating 5 | . . . . . 5 . Parts Repaired . | . . . . . . . Time . | . . . . . . . Parts Recycled . | . . . . . . . Recycled Matter . | . . . . . . . Retrieved Matter . | . . . . . . . Retrieved Components 7 | . . . . 7 . . Parts Scanalyzed . | . . . . . . . Part Schematics Acquired . | . . . . . . . Parts Damaged . | . . . . . . . Bothacking | -11 -10 -10 -10 -9 -7 -7 ------------ Run | Yrd Mat Min Sub Rec Fac Low Used RIF Installer . | . . . . . . . Robots Hacked . | . . . . . . . Non-combat . | . . . . . . . Combat . | . . . . . . . Robot Hacks Applied . | . . . . . . . Relay Couplers Released . | . . . . . . . Fabnet Peak Effective % . | . . . . . . . Robots Rewired . | . . . . . . . Allies Hacked . | . . . . . . . Hacks Repelled . | . . . . . . . Allies | -11 -10 -10 -10 -9 -7 -7 -------- Run | Yrd Mat Min Sub Rec Fac Low Total Allies . | . . . . . . . Largest Group . | . . . . . . . Highest-Rated Group . | . . . . . . . Highest-Rated Ally . | . . . . . . . Total Orders . | . . . . . . . Ally Attacks . | . . . . . . . Total Damage . | . . . . . . . Kills . | . . . . . . . Allies Corrupted . | . . . . . . . Allies Melted . | . . . . . . . Intel | -11 -10 -10 -10 -9 -7 -7 ------- Run | Yrd Mat Min Sub Rec Fac Low Robot Analysis Total 1 | . 1 . . . . . Derelict Logs Recovered . | . . . . . . . Drone Launches . | . . . . . . . Drone Recoveries . | . . . . . . . Exploration | -11 -10 -10 -10 -9 -7 -7 ------------- Run | Yrd Mat Min Sub Rec Fac Low Turns Passed 2580 | 33 325 272 162 1215 407 166 Spaces Moved 1630 | 29 248 222 79 711 289 52 Core 82 | 9 . . 1 . 20 52 Treads 726 | . . . . 611 115 . Legs 26 | . . . . . 26 . Wheels 794 | 20 248 222 76 100 128 . Hover . | . . . . . . . Flight 2 | . . . 2 . . . Fastest Speed 40 | 50 90 90 40 110 50 50 Average Speed 120 | 77 90 90 92 151 121 50 Slowest Speed 250 | 90 90 90 110 160 250 50 Overloaded Moves . | . . . . . . . Propulsion Burnouts . | . . . . . . . Robots Hopped . | . . . . . . . Cave-ins Triggered . | . . . . . . . Exploration Rate (%) 27 | 4 37 35 5 98 5 10 Regions Visited 6 Branch Regions 4 Pre-discovered Areas . | . . . . . . . Known Exits Taken . | . . . . . . . Unknown Exits Taken 6 | 1 1 1 1 1 1 . Scrap Searched . | . . . . . . . Spaces Dug 1 | . . . 1 . . . Terrain Destroyed 11 | . . . 1 10 . . Melee . | . . . . . . . Projectile 1 | . . . 1 . . . AOE 10 | . . . . 10 . . Terrain Rammed . | . . . . . . . Walls Destroyed . | . . . . . . . Machines Disabled . | . . . . . . . Actions | -11 -10 -10 -10 -9 -7 -7 --------- Run | Yrd Mat Min Sub Rec Fac Low Total 2101 | 39 326 278 110 844 312 192 Wait 306 | . 59 21 . 86 . 140 Move 1624 | 28 247 221 78 710 288 52 Hop . | . . . . . . . Pick Up 39 | 6 5 11 . 14 3 . Fast Attach 4 | . . . 3 1 . . Attach 21 | 5 2 4 1 4 5 . Detach . | . . . . . . . Swap 8 | . . 4 1 3 . . Drop 22 | . . 6 . 16 . . Fire 75 | . 13 10 27 9 16 . Melee 1 | . . . . 1 . . Ram . | . . . . . . . Kick . | . . . . . . . Crush . | . . . . . . . Escape Stasis . | . . . . . . . Rewire . | . . . . . . . Trap 1 | . . 1 . . . . Miscellaneous . | . . . . . . . Route ------- -11/Scrapyard -10/Materials (discovered 2 exits: [*Mat] / [*Min]) -10/Mines -10/Subcaves -9/Recycling -7/Factory -7/Lower Caves History --------- Turn | Location | Event 22 | -11/Scrapyard | Discovered new exit (range 15) 34 | -11/Scrapyard | Entered Materials 199 | -10/Materials | Discovered new exit (range 3) 287 | -10/Materials | Discovered new exit (range 14) 301 | -10/Materials | Build established: Mutant 359 | -10/Materials | Entered Mines 498 | -10/Mines | Core integrity fell below 50% 531 | -10/Mines | Lost 4 parts (1p1u2w) 567 | -10/Mines | Found a hidden stash of uninstalled traps 624 | -10/Mines | Discovered new exit (range 4) 631 | -10/Mines | Entered Subcaves 731 | -10/Subcaves | Discovered new exit (range 9) 780 | -10/Subcaves | Lost 4 parts (1p2n1w) 793 | -10/Subcaves | Entered Recycling 803 | -9/Recycling | Found Scrap Engine 942 | -9/Recycling | Core integrity fell below 20% 1068 | -9/Recycling | Build established: Scavenger-Mutant 1456 | -9/Recycling | Build established: Mutant 1963 | -9/Recycling | Discovered new exit (range 9) 2008 | -9/Recycling | Entered Factory 2008 | -7/Factory | Evolved 6 slots: Power x1, Propulsion x2, Utility x2, Weapon x1 2291 | -7/Factory | Lost 8 parts (2n2u4w) 2333 | -7/Factory | Discovered new exit (range 6) 2364 | -7/Factory | Core integrity fell below 50% 2409 | -7/Factory | Fabricated Phase Shifter? 2415 | -7/Factory | Entered Lower Caves 2573 | -7/Lower Caves | Core integrity fell below 20% 2581 | -7/Lower Caves | Destroyed by S-27 Virus with Autogun Last Messages --------------- (33,159) - Loaded: Recalibrator (69,126) - Loaded: Adv. System Restoration Module (155,25) - Loaded: Proton Missile Launcher >>Build Building Phase Shifter... ETC: 95 EXIT=FOUND K-01 Serf cleans the Neutrino Reactor. Acquired 2 matter. Door malfunctions. K-01 Serf collects debris. >> FABRICATOR: Completed Phase Shifter? K-01 Serf collects debris. Arm. Huge Wheel destroyed. K-01 Serf collects debris. LOCATION=UNKNOWN GOAL=ESCAPE Arm. Scrap Engine destroyed. Scrap Engine core remains intact and functional. Map ----- +----------------------------------------------------+ | ?????????????????????????????????????????????????? | | ?????????????????????????????????????????????????? | | ?????????????????????????????????????????????????? | | ?????????????????????????????????????????????????? | | ?????????????????????????????????????????????????? | | ?????????????????????????????????????????????????? | | ?????????????????????????????????????????????????? | | ?????????????????????????????????????????????????? | | ?????????????????????????????????????????????????? | | ?????????????????????????????????????????????????? | | ?????????????????????????????????????????????????? | | ?????????????????????????????????????????????????? | | ?????????????????????????????????????????????????? | | ?????????????????????????????????????????????????? | | ?????????????????????????????????????????????????? | | ?????????????????????????????????????????????????? | | ?????????????????????????????????????????????????? | | ?????????????????????????????????????????????????? | | ?????????????????????????????????????????????????? | | ?????????????????????????????????????????????????? | | ??????????????????????????????????????????????#### | | ?????????????????????####?####???????????????## # | | ???????????????????### ## ##?????????????## | | ???????????????????# ##??????????### | | ???????????????????### ## ############ | | ?????????????????????## @### # | | ??????????????????????## ### ## | | ???????????????????????## s### ####### #### | | ????????????????????????#ss #####?????######??### | | ????????????????????????# ??????????????????? | | ????????????????????????# ?????????????????? | | ???????????????????????? ????????????????? | | ???????????????????????? ## ???????????????? | | ???????????????????????? ###? ??????????????? | | ???????????????????????? ???? ?????????????? | | ???????????????????????? ????? ????????????? | | ???????????????????????? ????? ###???????????? | | ???????????????????????? ??????# #????????????? | | ???????????????????????? ??????????????????????? ? | | ???????????????????????? ????????????????????????? | | ???????????????????????? ????????????????????????? | | ?????????????????????????????????????????????????? | | ?????????????????????????????????????????????????? | | ?????????????????????????????????????????????????? | | ?????????????????????????????????????????????????? | | ?????????????????????????????????????????????????? | | ?????????????????????????????????????????????????? | | ?????????????????????????????????????????????????? | | ?????????????????????????????????????????????????? | | ?????????????????????????????????????????????????? | +----------------------------------------------------+ Best States ------------- Heat Dissipation 44 Energy Generation 12 Energy Capacity 265 Matter Stores 300 Matter Capacity 300 Sight Range 16 Robot Scan Range 14 Terrain Scan Density 10 Propulsion Shielding 33 Utility Shielding 33 Evasion (%) 55 Targeting Accuracy 10 Recoil Reduction 2 Authchip Count 2 Item Schematics ----------------- None Robot Schematics ------------------ None Fabricated ------------ Phase Shifter | x1 | -7/Factory | Preloaded Alien Tech Used ----------------- None Achievements -------------- None Challenges ------------ None Game ------ Seed ExperimentalMassWheel Manual? 0 Play Time 00:27:31 Cumulative 17.7 hours Start 2024.05.21 @ 20:16:03 End 2024.05.21 @ 20:49:41 Sessions 1 Manual Loads 0 Difficulty Rogue Special Mode None Game No. 31 Rogue 31 Adventurer 0 Explorer 0 Win Type - Total 0 Types 0/0/0/0/0/0/0/0/0 Lore% 21 Gallery% 28 Achievement% 23 Wizard Run 0 Options --------- Layout 1 ASCII 0 Keyboard 0 Movement Mouse Keybinds 0 Fullscreen 2 Font 32/SmallcapsGlow Map View 50x35 Zoom Use 0% Tactical HUD 0 Map Filters NONE Filters NONE Steam 1 RUN: 13c5ede2-a3c3-4450-a596-03cf3586463e